fUST/lending_fUST_20240208
["ID","MTS","AMOUNT","RATE_DAILY","PERIOD"]
[313461508,1707359439466,-5013.22,0.00028807,2]
[313461510,1707359439476,-5013.22,0.00028807,2]
[313461512,1707359439487,-5013.22,0.00028807,2]
[313461514,1707359439499,-5013.22,0.00028807,2]
[313461518,1707359439510,-5013.22,0.00028807,2]
[313461520,1707359439521,-5013.22,0.00028807,2]
[313461522,1707359439533,-5013.22,0.00028807,2]
[313461524,1707359439544,-151.0,0.00028807,2]
[313461526,1707359439555,-151.0,0.00028807,2]
[313461529,1707359439567,-151.0,0.00028807,2]
[313461531,1707359439579,-151.0,0.00028807,2]
[313461533,1707359439590,-862.098832,0.00028807,2]
[313461535,1707359439600,-862.098832,0.00028807,2]
[313461537,1707359439610,-20962.57,0.00028807,2]
[313461540,1707359439622,-103363.61382579,0.00028808,2]
[313461542,1707359439634,-151.0,0.00028808,2]
[313461544,1707359439645,-151.0,0.00028808,2]
[313461545,1707359439656,-151.0,0.00028808,2]
[313461546,1707359439668,-151.0,0.00028808,2]
[313461547,1707359439678,-151.0,0.00028808,2]
[313461548,1707359439690,-151.0,0.00028808,2]
[313461549,1707359439700,-862.098832,0.00028808,2]
[313461550,1707359439712,-862.098832,0.00028808,2]
[313461552,1707359439723,-151.0,0.00028808,2]
[313461554,1707359439734,-250.773996,0.00028808,2]
[313461556,1707359439745,-250.773996,0.00028808,2]
[313461558,1707359439756,-151.0,0.00028808,2]
[313461561,1707359439769,-151.0,0.00028808,2]
[313461563,1707359439780,-2102.274667,0.00028808,2]
[313461565,1707359439792,-2102.274667,0.00028808,2]
[313461568,1707359439804,-151.0,0.00028842,2]
[313461570,1707359439815,-300.0,0.00029,2]
[313461572,1707359439826,-3219.17146255,0.00029,2]
[313461574,1707359439836,-459.69208989,0.00029,3]
[313461576,1707359439847,-183.35515758,0.00029,10]
[313461578,1707359439856,-56321.64049573,0.00029,2]
[313461580,1707359439867,-10491.29121025,0.00029,2]
[313461583,1707359439878,-151.0,0.00029,2]
[313461585,1707359439889,-151.0,0.00029,2]
[313461587,1707359439901,-151.0,0.00029,2]
[313461589,1707359439913,-151.0,0.00029,2]
[313461591,1707359439923,-151.0,0.00029,2]
[313461593,1707359439935,-231.263188,0.00029,2]
[313461595,1707359439947,-862.098832,0.00029,2]
[313461598,1707359439958,-862.098832,0.00029,2]
[313461600,1707359439968,-151.0,0.00029,2]
[313461602,1707359439978,-250.773996,0.00029,2]
[313461604,1707359439988,-250.773996,0.00029,2]
[313461606,1707359439998,-151.0,0.00029,2]
[313461608,1707359440008,-151.0,0.00029,2]
[313461610,1707359440018,-2102.274667,0.00029,2]
[313461612,1707359440029,-2102.274667,0.00029,2]
[313461614,1707359440039,-306.0,0.00029041,2]
[313461616,1707359440050,-155.0290137,0.00029041,2]
[313461619,1707359440060,-315.1407098,0.00029178,2]
[313461621,1707359440072,-199.9537868,0.00029315,2]
[313461623,1707359440083,-312.5508738,0.00029315,2]
[313461625,1707359440093,-156.0134106,0.00029315,2]
[313461627,1707359440103,-156.6260754,0.00029315,2]
[313461629,1707359440113,-199.9537868,0.00029315,2]
[313461632,1707359440124,-153.0,0.00029315,2]
[313461635,1707359440134,-153.0,0.00029315,2]
[313461637,1707359440145,-173.4520642,0.00029315,2]
[313461640,1707359440156,-306.9182303,0.00029315,2]
[313461642,1707359440167,-199.9537868,0.00029315,2]
[313461645,1707359440178,-153.0,0.00029315,2]
[313461647,1707359440188,-307.4096268,0.00029315,2]
[313461649,1707359440199,-153.0,0.00029315,2]
[313461651,1707359440209,-153.0,0.00029315,2]
[313461653,1707359440220,-153.0,0.00029315,2]
[313461656,1707359440230,-199.9537868,0.00029315,2]
[313461658,1707359440241,-153.0,0.00029315,2]
[313461660,1707359440251,-153.0,0.00029315,2]
[313461662,1707359440261,-153.0,0.00029315,2]
[313461664,1707359440272,-153.0,0.00029315,2]
[313461666,1707359440283,-153.0,0.00029315,2]
[313461668,1707359440293,-199.9537868,0.00029315,2]
[313461671,1707359440304,-153.0,0.00029315,2]
[313461673,1707359440315,-308.6126969,0.00029315,2]
[313461675,1707359440327,-199.9537868,0.00029315,2]
[313461677,1707359440337,-153.0,0.00029315,2]
[313461679,1707359440349,-199.9537868,0.00029315,2]
[313461681,1707359440360,-153.0,0.00029315,2]
[313461684,1707359440371,-199.9537868,0.00029315,2]
[313461686,1707359440381,-153.0,0.00029315,2]
[313461688,1707359440392,-199.9537868,0.00029315,2]
[313461702,1707359440513,-153.0,0.00029315,2]
[313461704,1707359440525,-2000.0,0.000294,2]
[313461706,1707359440535,-500.0,0.000294,2]
[313461708,1707359440543,-2000.0,0.0002941,2]
[313461710,1707359440553,-2000.0,0.0002942,2]
[313461712,1707359440562,-2000.0,0.0002943,2]
[313461714,1707359440571,-2000.0,0.0002944,2]
[313461716,1707359440581,-2000.0,0.0002945,2]
[313461718,1707359440589,-2000.0,0.0002946,2]
[313461720,1707359440598,-620.0418117,0.00029463,2]
[313461722,1707359440607,-280.30132967,0.00029463,2]
[313461724,1707359440616,-500.0,0.00029463,2]
[313461726,1707359440625,-500.0,0.00029463,2]
[313461728,1707359440634,-306.63287989,0.00029463,2]
[313461730,1707359440643,-500.0,0.00029463,2]
[313461732,1707359440652,-500.0,0.00029463,2]
[313461734,1707359440661,-400.0,0.00029463,2]
[313461736,1707359440670,-500.0,0.00029463,2]
[313461738,1707359440679,-500.0,0.00029463,2]
[313461740,1707359440688,-500.0,0.00029463,2]
[313461742,1707359440697,-543.42467599,0.00029463,2]
[313461744,1707359440706,-543.36893213,0.00029463,2]
[313461746,1707359440715,-500.0,0.00029463,2]
[313461748,1707359440725,-500.0,0.00029463,2]
[313461750,1707359440734,-209.17564157,0.00029463,2]
[313461752,1707359440743,-500.0,0.00029463,2]
[313461754,1707359440752,-500.0,0.00029463,2]
[313461756,1707359440761,-500.0,0.00029463,2]
[313461758,1707359440770,-500.0,0.00029463,2]
[313461760,1707359440779,-500.0,0.00029463,2]
[313461762,1707359440788,-500.0,0.00029463,2]
[313461764,1707359440797,-500.0,0.00029463,2]
[313461766,1707359440806,-500.0,0.00029463,2]
[313461768,1707359440815,-500.0,0.00029463,2]
[313461770,1707359440825,-500.0,0.00029463,2]
[313461772,1707359440835,-500.0,0.00029463,2]
[313461774,1707359440843,-500.0,0.00029463,2]
[313461776,1707359440854,-300.0,0.00029463,2]
[313461778,1707359440863,-500.0,0.00029463,2]
[313461780,1707359440875,-500.0,0.00029463,2]
[313461782,1707359440884,-500.0,0.00029463,2]
[313461784,1707359440894,-154.74316365,0.00029463,2]
[313461786,1707359440903,-500.0,0.00029463,2]
[313461788,1707359440913,-500.0,0.00029463,2]
[313461790,1707359440922,-371.4161237,0.00029463,2]
[313461792,1707359440931,-500.0,0.00029463,2]
[313461794,1707359440940,-500.0,0.00029463,2]
[313461796,1707359440949,-155.10391963,0.00029464,2]
[313461798,1707359440958,-108838.59137395,0.00029464,7]
[313461800,1707359440972,-437.90229,0.00029464,7]
[313461821,1707359441158,-7179.2,0.00026552,3]
[313461823,1707359441168,-3150.44021363,0.00029464,7]
[313461824,1707359441180,-23158.36644232,0.00029464,7]
[313462077,1707359443101,-477.81316761,0.00026581,2]
[313462082,1707359443113,-444.97209498,0.00026581,2]
[313462086,1707359443124,-4077.21473741,0.00026581,2]
[313462089,1707359443133,-51.74436284,0.00029464,7]
[313462349,1707359446133,-155.09926353,0.00023897,4]
[313462350,1707359446143,-199.9537868,0.00029315,2]
[313462351,1707359446152,-52.45636254,0.00029464,7]
[313462352,1707359446164,-22330.24845248,0.00029464,7]
[313462353,1707359446173,-280.5209617,0.00029464,2]
[313462354,1707359446182,-1831.79022935,0.00029464,2]
[313462355,1707359446191,-151.0,0.00029464,2]
[313462356,1707359446200,-151.0,0.00029464,2]
[313462357,1707359446209,-151.0,0.00029464,2]
[313462358,1707359446218,-227.219388,0.00029464,2]
[313462359,1707359446228,-290.246502,0.00029464,2]
[313462360,1707359446237,-151.0,0.00029464,2]
[313462361,1707359446245,-862.098832,0.00029464,2]
[313462362,1707359446254,-862.098832,0.00029464,2]
[313462363,1707359446263,-151.0,0.00029464,2]
[313462364,1707359446272,-250.773996,0.00029464,2]
[313462365,1707359446281,-250.773996,0.00029464,2]
[313462366,1707359446289,-151.0,0.00029464,2]
[313462367,1707359446298,-151.0,0.00029464,2]
[313462368,1707359446307,-2102.274667,0.00029464,2]
[313462369,1707359446316,-2043.42157401,0.00029464,2]
[313462429,1707360220849,155.08840039,0.00017857,3]
[313462431,1707360238848,155.08840039,0.0001607,3]
[313462434,1707360258850,155.08840039,0.00016069,3]
[313462435,1707360276956,155.08840039,0.00016069,3]
[313462439,1707360292846,155.08840039,0.00016068,3]
[313462444,1707360312934,155.08840039,0.00016067,3]
[313462451,1707360338869,155.08840039,0.00016066,3]
[313462457,1707360358859,155.08840039,0.00016066,3]
[313462460,1707360378870,155.08840039,0.00016065,3]
[313462462,1707360398868,155.08840039,0.00016065,3]
[313462463,1707360414868,155.08840039,0.00016065,3]
[313462466,1707360434875,155.08840039,0.00016064,3]
[313462469,1707360450880,155.08684864,0.00016063,3]
[313462470,1707360468875,155.08529691,0.00016063,3]
[313462471,1707360486886,155.08840039,0.00016063,3]
[313462475,1707360504879,155.08840039,0.00016061,3]
[313462476,1707360519721,207.090595,0.00016888,2]
[313462477,1707360530894,155.08840039,0.00016061,3]
[313462479,1707360548896,155.08840039,0.00016061,3]
[313462503,1707360564893,155.08840039,0.00016059,3]
[313462505,1707360584894,155.08840039,0.00016058,3]
[313462506,1707360602930,155.08840039,0.00016058,3]
[313462507,1707360618904,155.08840039,0.00016058,3]
[313462538,1707360632172,-155.08840039,0.00017743,2]
[313462540,1707360632181,-820.86834729,0.00017744,2]
[313462542,1707360632190,-481.56201325,0.00017744,2]
[313462544,1707360632199,-210.15507116,0.00017745,2]
[313462546,1707360632208,-160.4961971,0.00017756,2]
[313462548,1707360632218,-2673.84666908,0.00017843,2]
[313462550,1707360632230,-16284.68511749,0.00017843,2]
[313462551,1707360632239,-37068.7030693,0.00017843,2]
[313462552,1707360632248,-9392.97703689,0.00017844,2]
[313462553,1707360632257,-83937.39539652,0.00017844,2]
[313462554,1707360632266,-3150.47558728,0.00017858,2]
[313462555,1707360632285,-1500.454842,0.00017858,2]
[313462663,1707360638331,-2505.4264903,0.00017858,2]
[313462666,1707360638347,-2151.42246861,0.00017858,2]
[313462668,1707360638359,-15592.22061181,0.00017858,2]
[313462670,1707360638368,-5854.11087692,0.00018,2]
[313462671,1707360638378,-168.780552,0.00019178,2]
[313462673,1707360638387,-200.0,0.00019631,2]
[313462675,1707360638396,-680.94052688,0.0002,2]
[313462676,1707360638406,-210.15507115,0.00020133,2]
[313462677,1707360638415,-325.09,0.00020735,2]
[313462679,1707360638424,-280.0,0.00021594,7]
[313462681,1707360638433,-166.666666,0.00021918,2]
[313462682,1707360638442,-3981.4674439,0.00022,2]
[313462684,1707360638451,-427.31508471,0.00022,2]
[313462686,1707360638460,-166.666666,0.00022431,2]
[313462688,1707360638470,-210.15507115,0.00022521,2]
[313462690,1707360638479,-166.666666,0.00022944,2]
[313462692,1707360638488,-9969.58754808,0.00023,2]
[313462694,1707360638497,-1263.33437611,0.00023,2]
[313462696,1707360638505,-166.666666,0.00023456,2]
[313462698,1707360638515,-391.0,0.00023754,7]
[313462700,1707360638524,-166.666666,0.00023969,2]
[313462702,1707360638533,-166.666666,0.00024482,2]
[313462704,1707360638543,-2905.35145241,0.00024899,2]
[313462706,1707360638552,-210.15507115,0.00024909,2]
[313462707,1707360638561,-155.09771156,0.00024995,2]
[313462709,1707360638569,-155.09771156,0.00024995,2]
[313462711,1707360638579,-2296.70683753,0.00025,2]
[313462713,1707360638587,-6300.94053929,0.00025,2]
[313462715,1707360638597,-4101.95611379,0.00025,2]
[313462717,1707360638606,-335.61069179,0.00025,2]
[313462719,1707360638614,-1000.0,0.00025,2]
[313462721,1707360638623,-1000.0,0.00025,2]
[313462723,1707360638632,-1000.0,0.00025,2]
[313462725,1707360638641,-1000.0,0.00025,2]
[313462726,1707360638650,-1000.0,0.00025,2]
[313462728,1707360638659,-1000.0,0.00025,2]
[313462730,1707360638668,-1000.0,0.00025,2]
[313462732,1707360638679,-1000.0,0.00025,2]
[313462734,1707360638688,-1000.0,0.00025,2]
[313462736,1707360638697,-1000.0,0.00025,2]
[313462738,1707360638707,-1000.0,0.00025,2]
[313462740,1707360638716,-207.090595,0.00025333,2]
[313462742,1707360638726,-200.0,0.00026129,15]
[313462744,1707360638735,-348.0,0.00026129,15]
[313462746,1707360638744,-388.31255168,0.0002628,2]
[313462748,1707360638756,-4076.78156932,0.00026549,2]
[313462750,1707360638764,-5000.0,0.00026573,2]
[313462751,1707360638774,-500.0,0.00026589,2]
[313462753,1707360638783,-479.84674693,0.00026589,2]
[313462755,1707360638792,-500.0,0.00026589,2]
[313462757,1707360638801,-500.0,0.00026589,2]
[313462759,1707360638810,-500.0,0.00026589,2]
[313462761,1707360638819,-592.39024017,0.00026589,2]
[313462763,1707360638828,-500.0,0.00026589,2]
[313462765,1707360638837,-270.6775118,0.00026589,2]
[313462767,1707360638846,-466.08782316,0.00026589,2]
[313462769,1707360638855,-232.00422812,0.00026589,2]
[313462771,1707360638864,-510.89370596,0.00026589,2]
[313462772,1707360638873,-500.0,0.00026589,2]
[313462774,1707360638882,-500.0,0.00026589,2]
[313462776,1707360638891,-500.0,0.00026589,2]
[313462778,1707360638900,-500.0,0.00026589,2]
[313462780,1707360638910,-500.0,0.00026589,2]
[313462782,1707360638919,-500.0,0.00026589,2]
[313462784,1707360638928,-471.62554063,0.00026589,2]
[313462786,1707360638936,-500.0,0.00026589,2]
[313462788,1707360638945,-500.0,0.00026589,2]
[313462789,1707360638954,-500.0,0.00026589,2]
[313462791,1707360638963,-500.0,0.00026589,2]
[313462793,1707360638972,-515.21031646,0.00026589,2]
[313462795,1707360638981,-392.63936948,0.00026589,2]
[313462797,1707360638990,-500.0,0.00026589,2]
[313462799,1707360638999,-500.0,0.00026589,2]
[313462801,1707360639008,-500.0,0.00026589,2]
[313462803,1707360639017,-500.0,0.00026589,2]
[313462805,1707360639025,-500.0,0.00026589,2]
[313462807,1707360639034,-550.0,0.00026589,2]
[313462808,1707360639044,-500.0,0.00026589,2]
[313462810,1707360639053,-500.0,0.00026589,2]
[313462812,1707360639062,-500.0,0.00026589,2]
[313462814,1707360639071,-500.0,0.00026589,2]
[313462816,1707360639081,-500.0,0.00026589,2]
[313462818,1707360639090,-500.0,0.00026589,2]
[313462820,1707360639102,-500.0,0.00026589,2]
[313462822,1707360639113,-500.0,0.00026589,2]
[313462824,1707360639122,-500.0,0.00026589,2]
[313462826,1707360639131,-500.0,0.00026589,2]
[313462828,1707360639141,-500.0,0.00026589,2]
[313462830,1707360639150,-500.0,0.00026589,2]
[313462832,1707360639160,-500.0,0.00026589,2]
[313462833,1707360639169,-500.0,0.00026589,2]
[313462835,1707360639178,-500.0,0.00026589,2]
[313462837,1707360639187,-500.0,0.00026589,2]
[313462839,1707360639197,-500.0,0.00026589,2]
[313462841,1707360639206,-500.0,0.00026589,2]
[313462843,1707360639215,-500.0,0.00026589,2]
[313462845,1707360639224,-500.0,0.00026589,2]
[313462846,1707360639234,-500.0,0.00026589,2]
[313462848,1707360639243,-500.0,0.00026589,2]
[313462850,1707360639252,-500.0,0.00026589,2]
[313462852,1707360639262,-500.0,0.00026589,2]
[313462854,1707360639271,-437.20971493,0.00026589,2]
[313462856,1707360639280,-500.0,0.00026589,2]
[313462857,1707360639289,-500.0,0.00026589,2]
[313462859,1707360639298,-500.0,0.00026589,2]
[313462861,1707360639307,-500.0,0.00026589,2]
[313462863,1707360639316,-500.0,0.00026589,2]
[313462865,1707360639324,-500.0,0.00026589,2]
[313462867,1707360639333,-500.0,0.00026589,2]
[313462869,1707360639342,-72626.85050919,0.00026593,2]
[313462870,1707360639351,-50000.0,0.00026593,2]
[313462872,1707360639360,-54156.11967968,0.00026593,2]
[313462874,1707360639369,-5000.0,0.00026593,2]
[313462876,1707360639378,-14304.49673447,0.0002661,2]
[313462878,1707360639387,-1382.75585323,0.00027,2]
[313462880,1707360639396,-210.15507115,0.00027297,2]
[313462881,1707360639405,-2202.71847279,0.00027364,2]
[313462883,1707360639415,-151.0,0.00027376,2]
[313462885,1707360639424,-991.3729726,0.00027397,2]
[313462887,1707360639433,-8861.91,0.00027397,3]
[313462889,1707360639442,-600.0,0.000275,2]
[313462891,1707360639451,-514.08551986,0.000275,2]
[313462893,1707360639460,-983.77,0.00027844,7]
[313462895,1707360639469,-4369.78159121,0.00028,2]
[313462897,1707360639479,-1716.51144437,0.00028,2]
[313462898,1707360639488,-46111.02664638,0.00028,2]
[313462900,1707360639497,-1129.85208544,0.00028,20]
[313462902,1707360639506,-151.0,0.00028,2]
[313462904,1707360639515,-286.096596,0.00028,2]
[313462906,1707360639524,-286.096596,0.00028,2]
[313462908,1707360639533,-151.0,0.00028161,2]
[313462910,1707360639543,-160.51086893,0.0002828,2]
[313462912,1707360639552,-199.9537868,0.00028493,2]
[313462914,1707360639562,-526.1045281,0.00028493,2]
[313462915,1707360639571,-199.9537868,0.00028578,2]
[313462917,1707360639580,-103363.61382579,0.0002866,2]
[313462919,1707360639589,-151.0,0.0002866,2]
[313462921,1707360639598,-151.0,0.0002866,2]
[313462923,1707360639607,-151.0,0.0002866,2]
[313462925,1707360639616,-999.0447,0.0002866,2]
[313462927,1707360639625,-999.0447,0.0002866,2]
[313462928,1707360639634,-151.0,0.0002866,2]
[313462930,1707360639642,-154.150751,0.0002866,2]
[313462932,1707360639651,-286.096596,0.0002866,2]
[313462934,1707360639660,-286.096596,0.0002866,2]
[313462935,1707360639669,-151.0,0.0002866,2]
[313462937,1707360639680,-1937.348862,0.0002866,2]
[313462939,1707360639689,-1937.348862,0.0002866,2]
[313462941,1707360639698,-199.9537868,0.00028678,2]
[313462944,1707360639707,-199.9537868,0.00028678,2]
[313462947,1707360639719,-200.0,0.00028742,15]
[313462950,1707360639728,-200.0,0.00028742,15]
[313462953,1707360639737,-368.0,0.00028742,15]
[313462954,1707360639746,-454.79243383,0.00028875,2]
[313462956,1707360639756,-199.9537868,0.00028878,2]
[313462958,1707360639766,-151.0,0.00028945,2]
[313462960,1707360639775,-5000.0,0.0002899,5]
[313462962,1707360639784,-156.02364156,0.00028997,2]
[313462964,1707360639793,-462.18513221,0.00029,3]
[313462966,1707360639803,-183.35515758,0.00029,10]
[313462968,1707360639812,-56321.64049573,0.00029,2]
[313462969,1707360639821,-315.1407098,0.00029178,2]
[313462971,1707360639830,-355.38,0.000292,3]
[313462973,1707360639839,-1000.0,0.00029224,2]
[313462975,1707360639849,-1000.0,0.00029287,2]
[313462977,1707360639858,-306.9182303,0.00029315,2]
[313462979,1707360639866,-159.5508738,0.00029315,2]
[313462981,1707360639875,-159.2387723,0.00029315,2]
[313462983,1707360639884,-307.4096268,0.00029315,2]
[313462984,1707360639893,-173.4520642,0.00029315,2]
[313462986,1707360639902,-199.9537868,0.00029315,2]
[313462988,1707360639911,-156.0134106,0.00029315,2]
[313462990,1707360639920,-443.13505436,0.00029372,2]
[313462992,1707360639929,-1000.0,0.00029391,2]
[313462994,1707360639938,-1000.0,0.00029397,2]
[313462996,1707360639947,-368.49772942,0.00029399,2]
[313463006,1707360640044,-17179.37883402,0.00029399,2]
[313463008,1707360640054,-2000.0,0.000294,2]
[313463010,1707360640063,-500.0,0.000294,2]
[313463012,1707360640072,-2000.0,0.0002941,2]
[313463013,1707360640081,-2000.0,0.0002942,2]
[313463015,1707360640090,-2000.0,0.0002943,2]
[313463017,1707360640100,-2000.0,0.0002944,2]
[313463019,1707360640109,-2000.0,0.0002945,2]
[313463021,1707360640118,-500.0,0.00029459,2]
[313463023,1707360640127,-500.0,0.00029459,2]
[313463025,1707360640137,-500.0,0.00029459,2]
[313463027,1707360640146,-500.0,0.00029459,2]
[313463029,1707360640155,-500.0,0.00029459,2]
[313463030,1707360640164,-219.92287398,0.00029459,2]
[313463032,1707360640174,-500.0,0.00029459,2]
[313463034,1707360640183,-429.97959239,0.00029459,2]
[313463036,1707360640193,-500.0,0.00029459,2]
[313463038,1707360640202,-500.0,0.00029459,2]
[313463040,1707360640211,-600.0,0.00029459,2]
[313463042,1707360640220,-500.0,0.00029459,2]
[313463044,1707360640229,-500.0,0.00029459,2]
[313463045,1707360640238,-500.0,0.00029459,2]
[313463047,1707360640248,-500.0,0.00029459,2]
[313463049,1707360640258,-500.0,0.00029459,2]
[313463051,1707360640267,-300.0,0.00029459,2]
[313463053,1707360640277,-500.0,0.00029459,2]
[313463055,1707360640286,-500.0,0.00029459,2]
[313463057,1707360640296,-500.0,0.00029459,2]
[313463059,1707360640304,-334.64277601,0.00029459,2]
[313463061,1707360640314,-500.0,0.00029459,2]
[313463062,1707360640323,-500.0,0.00029459,2]
[313463064,1707360640333,-500.0,0.00029459,2]
[313463066,1707360640342,-500.0,0.00029459,2]
[313463068,1707360640352,-376.42573825,0.00029459,2]
[313463070,1707360640361,-2000.0,0.0002946,2]
[313463072,1707360640370,-1937.348862,0.0002946,2]
[313463074,1707360640379,-1937.348862,0.0002946,2]
[313463076,1707360640387,-286.096596,0.00029461,2]
[313463078,1707360640396,-286.096596,0.00029461,2]
[313463081,1707360640416,-151.0,0.00029461,2]
[313463083,1707360640427,-21030.61482842,0.00029462,2]
[313463085,1707360640437,-151.0,0.00029462,2]
[313463087,1707360640447,-151.0,0.00029462,2]
[313463089,1707360640456,-231.263188,0.00029462,2]
[313463091,1707360640466,-999.0447,0.00029462,2]
[313463092,1707360640476,-999.0447,0.00029462,2]
[313463094,1707360640485,-151.0,0.00029462,2]
[313463096,1707360640495,-286.096596,0.00029462,2]
[313463098,1707360640504,-286.096596,0.00029462,2]
[313463100,1707360640514,-611.6915191,0.00029463,2]
[313463102,1707360640523,-151.0,0.00029463,2]
[313463104,1707360640533,-151.0,0.00029463,2]
[313463106,1707360640542,-999.0447,0.00029463,2]
[313463108,1707360640552,-999.0447,0.00029463,2]
[313463110,1707360640562,-151.0,0.00029463,2]
[313463112,1707360640571,-151.0,0.00029463,2]
[313463114,1707360640581,-8203.09,0.00029463,2]
[313463116,1707360640591,-8203.09,0.00029463,2]
[313463118,1707360640601,-8203.09,0.00029463,2]
[313463120,1707360640611,-8203.09,0.00029463,2]
[313463122,1707360640620,-847.51447305,0.00029463,2]
[313463170,1707360641458,-155.08840039,0.00026588,4]
[313463172,1707360641468,-4091.33581289,0.00029463,2]
[313463574,1707360646291,-259.68041159,0.0002628,2]
[313463575,1707360646301,-153.0,0.00029315,2]
[313463576,1707360646311,-153.0,0.00029315,2]
[313463577,1707360646321,-199.9537868,0.00029315,2]
[313463578,1707360646331,-153.0,0.00029315,2]
[313463579,1707360646340,-172.66580161,0.00029453,3]
[313463581,1707360646358,-7212.26419839,0.00029453,3]
[313463582,1707360646366,-4189.16652197,0.00029462,2]
[313463584,1707360646383,-4541.34798937,0.00029462,2]
[313463585,1707360646392,-155.08840039,0.00029462,2]
[313463586,1707360646401,-222.75888665,0.00029462,2]
[313463588,1707360646410,-3264.23971406,0.00029463,2]
[313463590,1707360646419,-8203.09,0.00029463,2]
[313463591,1707360646429,-8203.09,0.00029463,2]
[313463593,1707360646438,-8203.09,0.00029463,2]
[313463594,1707360646447,-8203.09,0.00029463,2]
[313463595,1707360646456,-8203.09,0.00029463,2]
[313463596,1707360646466,-155.09926353,0.00029464,2]
[313463597,1707360646475,-1831.79022935,0.00029464,2]
[313463598,1707360646484,-3252.21461977,0.00029464,2]
[313463599,1707360646494,-108838.59137395,0.00029464,7]
[313463600,1707360646503,-300.0,0.00029464,2]
[313463601,1707360646512,-151.0,0.00029464,2]
[313463602,1707360646521,-151.0,0.00029464,2]
[313463603,1707360646530,-151.0,0.00029464,2]
[313463604,1707360646539,-200.0,0.00029464,2]
[313463605,1707360646548,-151.0,0.00029464,2]
[313463606,1707360646557,-151.0,0.00029464,2]
[313463607,1707360646566,-151.0,0.00029464,2]
[313463608,1707360646575,-999.0447,0.00029464,2]
[313463609,1707360646584,-999.0447,0.00029464,2]
[313463610,1707360646593,-151.0,0.00029464,2]
[313463611,1707360646602,-286.096596,0.00029464,2]
[313463612,1707360646611,-286.096596,0.00029464,2]
[313463613,1707360646620,-151.0,0.00029464,2]
[313463614,1707360646629,-1937.348862,0.00029464,2]
[313463615,1707360646638,-1937.348862,0.00029464,2]
[313463616,1707360646647,-2000.0,0.0002947,2]
[313463617,1707360646656,-157.72857921,0.00029473,2]
[313463618,1707360646666,-3577.4654264,0.00029474,5]
[313463619,1707360646675,-2000.0,0.0002948,2]
[313463620,1707360646687,-3575.763389,0.0002949,2]
[313463621,1707360646696,-1025.98354362,0.000295,2]
[313463622,1707360646706,-174.31951268,0.000295,30]
[313463623,1707360646715,-155.0290137,0.00029589,2]
[313463624,1707360646724,-153.0,0.00029589,2]
[313463625,1707360646733,-151.0,0.00029729,2]
[313463626,1707360646742,-1000.0,0.00029731,2]
[313463627,1707360646752,-1000.0,0.00029782,2]
[313463628,1707360646761,-1000.0,0.00029789,2]
[313463629,1707360646771,-1000.0,0.00029845,2]
[313463630,1707360646780,-1000.0,0.00029857,2]
[313463631,1707360646789,-1000.0,0.00029892,2]
[313463632,1707360646798,-2274.5064198,0.000299,2]
[313463633,1707360646807,-1000.0,0.00029931,2]
[313463634,1707360646816,-1000.0,0.00029942,2]
[313463635,1707360646825,-1000.0,0.00029969,2]
[313463636,1707360646834,-1000.0,0.00029989,2]
[313463637,1707360646843,-155.91451335,0.00029995,2]
[313463638,1707360646853,-155.35915668,0.00029996,2]
[313463639,1707360646862,-2109.23862563,0.00029996,2]
[313463640,1707360646872,-155.52453245,0.00029997,2]